fUST/lending_fUST_20250530
["ID","MTS","AMOUNT","RATE_DAILY","PERIOD"]
[363097054,1748575842220,-430.0,0.00019178,2]
[363097056,1748575842230,-430.0,0.00019178,2]
[363097058,1748575842239,-430.0,0.00019178,2]
[363097060,1748575842249,-430.0,0.00019178,2]
[363097062,1748575842258,-430.0,0.00019178,2]
[363097064,1748575842267,-430.0,0.00019178,2]
[363097066,1748575842276,-430.0,0.00019178,2]
[363097068,1748575842286,-430.0,0.00019178,2]
[363097070,1748575842295,-479.72210351,0.00019178,2]
[363097072,1748575842304,-450.93229056,0.00019178,2]
[363097074,1748575842314,-430.0,0.00019178,2]
[363097076,1748575842323,-430.0,0.00019178,2]
[363097078,1748575842332,-430.0,0.00019178,2]
[363097080,1748575842341,-4241.04,0.00019178,2]
[363097082,1748575842350,-430.0,0.00019178,2]
[363097084,1748575842359,-430.0,0.00019178,2]
[363097086,1748575842369,-430.0,0.00019178,2]
[363097088,1748575842379,-487.40957127,0.00019178,2]
[363097090,1748575842388,-430.0,0.00019178,2]
[363097092,1748575842397,-430.0,0.00019178,2]
[363097094,1748575842407,-430.0,0.00019178,2]
[363097096,1748575842415,-2020.64,0.00019178,2]
[363097097,1748575842424,-430.0,0.00019178,2]
[363097100,1748575842435,-447.67219158,0.00019178,2]
[363097102,1748575842444,-430.0,0.00019178,2]
[363097103,1748575842454,-430.0,0.00019178,2]
[363097106,1748575842463,-405.09134318,0.00019178,2]
[363097108,1748575842473,-430.0,0.00019178,2]
[363097110,1748575842483,-430.0,0.00019178,2]
[363097111,1748575842492,-430.0,0.00019178,2]
[363097113,1748575842501,-430.0,0.00019178,2]
[363097115,1748575842510,-430.0,0.00019178,2]
[363097117,1748575842520,-5615.71,0.00019178,2]
[363097119,1748575842529,-430.0,0.00019178,2]
[363097121,1748575842538,-430.0,0.00019178,2]
[363097123,1748575842548,-1737.55,0.00019178,2]
[363097125,1748575842557,-493.36763536,0.00019178,2]
[363097127,1748575842567,-777.34,0.00019178,2]
[363097129,1748575842578,-484.08,0.00019178,2]
[363097131,1748575842587,-430.0,0.00019178,2]
[363097133,1748575842597,-430.0,0.00019178,2]
[363097135,1748575842606,-535.24103622,0.00019178,2]
[363097137,1748575842615,-430.0,0.00019178,2]
[363097139,1748575842626,-430.0,0.00019178,2]
[363097141,1748575842635,-432.49311301,0.00019178,2]
[363097143,1748575842645,-430.0,0.00019178,2]
[363097145,1748575842654,-430.0,0.00019178,2]
[363097147,1748575842663,-1317.42,0.00019178,2]
[363097149,1748575842672,-430.0,0.00019178,2]
[363097151,1748575842681,-430.0,0.00019178,2]
[363097153,1748575842690,-531.28,0.00019178,2]
[363097155,1748575842699,-6961.91,0.00019178,2]
[363097157,1748575842708,-430.0,0.00019178,2]
[363097159,1748575842717,-430.0,0.00019178,2]
[363097161,1748575842726,-430.0,0.00019178,2]
[363097162,1748575842735,-500.0,0.00019178,2]
[363097164,1748575842744,-500.0,0.00019178,2]
[363097166,1748575842753,-500.0,0.00019178,2]
[363097168,1748575842762,-430.0,0.00019178,2]
[363097170,1748575842771,-439.69404227,0.00019178,2]
[363097172,1748575842780,-825.19,0.00019178,2]
[363097174,1748575842789,-430.0,0.00019178,2]
[363097176,1748575842799,-430.0,0.00019178,2]
[363097178,1748575842814,-500.0,0.00019178,2]
[363097180,1748575842823,-500.0,0.00019178,2]
[363097182,1748575842833,-500.0,0.00019178,2]
[363097184,1748575842843,-499.67881174,0.00019178,2]
[363097186,1748575842852,-430.0,0.00019178,2]
[363097188,1748575842862,-642.85,0.00019178,2]
[363097190,1748575842871,-430.0,0.00019178,2]
[363097192,1748575842885,-430.0,0.00019178,2]
[363097194,1748575842895,-430.0,0.00019178,2]
[363097196,1748575842904,-430.0,0.00019178,2]
[363097198,1748575842913,-430.0,0.00019178,2]
[363097200,1748575842923,-430.0,0.00019178,2]
[363097202,1748575842932,-560.36,0.00019178,2]
[363097204,1748575842941,-430.0,0.00019178,2]
[363097206,1748575842951,-430.0,0.00019178,2]
[363097208,1748575842960,-430.0,0.00019178,2]
[363097209,1748575842969,-430.0,0.00019178,2]
[363097211,1748575842978,-4859.02,0.00019178,2]
[363097216,1748575842988,-430.0,0.00019178,2]
[363097218,1748575842996,-430.0,0.00019178,2]
[363097221,1748575843005,-430.0,0.00019178,2]
[363097223,1748575843014,-430.0,0.00019178,2]
[363097225,1748575843024,-1011.83099455,0.00019178,2]
[363097227,1748575843033,-702.74,0.00019178,2]
[363097229,1748575843042,-970.55,0.00019178,2]
[363097231,1748575843052,-430.0,0.00019178,2]
[363097233,1748575843061,-332.36565037,0.00019178,2]
[363097235,1748575843070,-430.0,0.00019178,2]
[363097237,1748575843080,-430.0,0.00019178,2]
[363097240,1748575843088,-3886.76,0.00019178,2]
[363097242,1748575843097,-430.0,0.00019178,2]
[363097245,1748575843106,-432.13836233,0.00019178,2]
[363097247,1748575843116,-430.0,0.00019178,2]
[363097249,1748575843125,-3243.67,0.00019178,2]
[363097251,1748575843133,-430.0,0.00019178,2]
[363097253,1748575843142,-430.0,0.00019178,2]
[363097255,1748575843151,-927.15,0.00019178,2]
[363097257,1748575843161,-430.0,0.00019178,2]
[363097259,1748575843170,-1085.14,0.00019178,2]
[363097261,1748575843179,-430.0,0.00019178,2]
[363097263,1748575843188,-430.0,0.00019178,2]
[363097265,1748575843197,-430.0,0.00019178,2]
[363097267,1748575843206,-430.0,0.00019178,2]
[363097268,1748575843216,-893.29,0.00019178,2]
[363097270,1748575843225,-430.0,0.00019178,2]
[363097272,1748575843234,-430.0,0.00019178,2]
[363097274,1748575843243,-3911.55,0.00019178,2]
[363097277,1748575843253,-1716.58,0.00019178,2]
[363097279,1748575843262,-430.0,0.00019178,2]
[363097280,1748575843271,-430.0,0.00019178,2]
[363097282,1748575843279,-939.23,0.00019178,2]
[363097284,1748575843289,-435.57,0.00019178,2]
[363097286,1748575843298,-500.0,0.00019178,2]
[363097288,1748575843307,-1217.43,0.00019178,2]
[363097290,1748575843316,-430.0,0.00019178,2]
[363097292,1748575843326,-430.0,0.00019178,2]
[363097294,1748575843335,-1151.16,0.00019178,2]
[363097296,1748575843344,-430.0,0.00019178,2]
[363097298,1748575843353,-430.0,0.00019178,2]
[363097301,1748575843362,-430.0,0.00019178,2]
[363097303,1748575843371,-430.0,0.00019178,2]
[363097306,1748575843381,-430.0,0.00019178,2]
[363097309,1748575843390,-430.0,0.00019178,2]
[363097311,1748575843399,-168.48,0.00019178,2]
[363097313,1748575843408,-475.45,0.00019178,2]
[363097315,1748575843417,-430.0,0.00019178,2]
[363097317,1748575843426,-430.0,0.00019178,2]
[363097319,1748575843436,-1274.41,0.00019178,2]
[363097321,1748575843445,-430.0,0.00019178,2]
[363097323,1748575843453,-350.08913176,0.00019178,2]
[363097325,1748575843462,-430.0,0.00019178,2]
[363097327,1748575843471,-430.0,0.00019178,2]
[363097329,1748575843480,-430.0,0.00019178,2]
[363097331,1748575843490,-430.0,0.00019178,2]
[363097333,1748575843499,-430.0,0.00019178,2]
[363097343,1748575843508,-500.0,0.00019178,2]
[363097347,1748575843612,-500.0,0.00019178,2]
[363097349,1748575843623,-500.0,0.00019178,2]
[363097351,1748575843632,-500.0,0.00019178,2]
[363097353,1748575843643,-359.72792702,0.00019178,2]
[363097355,1748575843653,-440.63,0.00019178,2]
[363097357,1748575843662,-430.0,0.00019178,2]
[363097359,1748575843672,-430.0,0.00019178,2]
[363097361,1748575843682,-430.0,0.00019178,2]
[363097363,1748575843692,-430.0,0.00019178,2]
[363097365,1748575843705,-1219.32,0.00019178,2]
[363097367,1748575843716,-430.0,0.00019178,2]
[363097369,1748575843727,-430.0,0.00019178,2]
[363097371,1748575843736,-314.28314713,0.00019178,2]
[363097373,1748575843746,-430.0,0.00019178,2]
[363097375,1748575843756,-430.0,0.00019178,2]
[363097377,1748575843767,-430.0,0.00019178,2]
[363097379,1748575843778,-430.0,0.00019178,2]
[363097381,1748575843789,-499.38,0.00019178,2]
[363097383,1748575843800,-430.0,0.00019178,2]
[363097385,1748575843812,-421.78857933,0.00019178,2]
[363097387,1748575843823,-1816.26,0.00019178,2]
[363097389,1748575843832,-430.0,0.00019178,2]
[363097391,1748575843841,-430.0,0.00019178,2]
[363097393,1748575843851,-2449.48,0.00019178,2]
[363097395,1748575843860,-2134.14,0.00019178,2]
[363097397,1748575843869,-430.0,0.00019178,2]
[363097399,1748575843881,-430.0,0.00019178,2]
[363097401,1748575843891,-430.0,0.00019178,2]
[363097403,1748575843900,-188.70873862,0.00019178,2]
[363097405,1748575843909,-430.0,0.00019178,2]
[363097406,1748575843919,-606.01,0.00019178,2]
[363097407,1748575843928,-430.0,0.00019178,2]
[363097408,1748575843936,-430.0,0.00019178,2]
[363097410,1748575843945,-430.0,0.00019178,2]
[363097411,1748575843954,-430.0,0.00019178,2]
[363097412,1748575843963,-430.0,0.00019178,2]
[363097413,1748575843972,-430.0,0.00019178,2]
[363097414,1748575843981,-430.0,0.00019178,2]
[363097416,1748575843990,-430.0,0.00019178,2]
[363097418,1748575844000,-430.0,0.00019178,2]
[363097420,1748575844009,-430.0,0.00019178,2]
[363097422,1748575844018,-606.46,0.00019178,2]
[363097424,1748575844028,-430.0,0.00019178,2]
[363097426,1748575844037,-430.0,0.00019178,2]
[363097428,1748575844047,-430.0,0.00019178,2]
[363097430,1748575844056,-2508.29,0.00019178,2]
[363097432,1748575844065,-430.0,0.00019178,2]
[363097434,1748575844074,-430.0,0.00019178,2]
[363097436,1748575844083,-400.0,0.00019178,2]
[363097438,1748575844092,-430.0,0.00019178,2]
[363097440,1748575844101,-430.0,0.00019178,2]
[363097442,1748575844110,-430.0,0.00019178,2]
[363097444,1748575844119,-432.67353981,0.00019178,2]
[363097446,1748575844130,-430.0,0.00019178,2]
[363097448,1748575844139,-340.0,0.00019178,2]
[363097450,1748575844149,-248.36314654,0.00019178,2]
[363097452,1748575844158,-430.0,0.00019178,2]
[363097454,1748575844167,-217.42104227,0.00019178,2]
[363097456,1748575844176,-1361.81,0.00019178,2]
[363097458,1748575844186,-430.0,0.00019178,2]
[363097460,1748575844195,-430.0,0.00019178,2]
[363097462,1748575844204,-430.0,0.00019178,2]
[363097464,1748575844213,-430.0,0.00019178,2]
[363097466,1748575844222,-430.0,0.00019178,2]
[363097468,1748575844231,-288.16596885,0.00019178,2]
[363097470,1748575844240,-578.28,0.00019178,2]
[363097472,1748575844249,-431.20239466,0.00019178,2]
[363097474,1748575844258,-430.0,0.00019178,2]
[363097476,1748575844268,-430.0,0.00019178,2]
[363097478,1748575844277,-651.96,0.00019178,2]
[363097480,1748575844286,-561.06524436,0.00019178,2]
[363097482,1748575844296,-430.0,0.00019178,2]
[363097484,1748575844305,-430.0,0.00019178,2]
[363097486,1748575844314,-430.0,0.00019178,2]
[363097488,1748575844323,-400.0,0.00019178,2]
[363097490,1748575844332,-431.26081493,0.00019178,2]
[363097492,1748575844341,-430.0,0.00019178,2]
[363097494,1748575844350,-430.0,0.00019178,2]
[363097496,1748575844359,-492.02,0.00019178,2]
[363097498,1748575844368,-430.0,0.00019178,2]
[363097500,1748575844378,-430.0,0.00019178,2]
[363097502,1748575844387,-519.02725028,0.00019178,2]
[363097504,1748575844396,-430.0,0.00019178,2]
[363097506,1748575844405,-430.0,0.00019178,2]
[363097508,1748575844414,-430.0,0.00019178,2]
[363097510,1748575844423,-430.0,0.00019178,2]
[363097512,1748575844432,-430.0,0.00019178,2]
[363097514,1748575844440,-430.0,0.00019178,2]
[363097516,1748575844449,-430.0,0.00019178,2]
[363097518,1748575844458,-554.66,0.00019178,2]
[363097520,1748575844467,-430.0,0.00019178,2]
[363097522,1748575844477,-1294.97879658,0.00019348,2]
[363097524,1748575844486,-1116.18304322,0.00019352,2]
[363097526,1748575844495,-151.0,0.00019452,2]
[363097528,1748575844505,-430.0,0.00019452,2]
[363097530,1748575844514,-430.0,0.00019452,2]
[363097532,1748575844523,-430.0,0.00019452,2]
[363097534,1748575844532,-430.0,0.00019452,2]
[363097536,1748575844542,-430.0,0.00019452,2]
[363097538,1748575844551,-430.0,0.00019452,2]
[363097540,1748575844560,-276.91118354,0.00019452,2]
[363097542,1748575844572,-430.0,0.00019452,2]
[363097544,1748575844581,-430.0,0.00019452,2]
[363097546,1748575844591,-430.0,0.00019452,2]
[363097548,1748575844599,-430.0,0.00019452,2]
[363097550,1748575844609,-430.0,0.00019452,2]
[363097552,1748575844619,-300.60506843,0.00019452,2]
[363097554,1748575844629,-430.0,0.00019452,2]
[363097556,1748575844638,-430.0,0.00019452,2]
[363097558,1748575844647,-410.44287126,0.00019452,2]
[363097560,1748575844656,-430.0,0.00019452,2]
[363097562,1748575844665,-430.0,0.00019452,2]
[363097564,1748575844675,-430.0,0.00019452,2]
[363097566,1748575844684,-482.40494254,0.00019452,2]
[363097568,1748575844693,-430.0,0.00019452,2]
[363097570,1748575844702,-430.0,0.00019452,2]
[363097572,1748575844711,-430.0,0.00019452,2]
[363097574,1748575844720,-430.0,0.00019452,2]
[363097576,1748575844729,-430.0,0.00019452,2]
[363097578,1748575844739,-430.0,0.00019452,2]
[363097580,1748575844747,-430.0,0.00019452,2]
[363097582,1748575844757,-430.0,0.00019452,2]
[363097584,1748575844766,-430.0,0.00019452,2]
[363097586,1748575844775,-430.0,0.00019452,2]
[363097588,1748575844784,-189.70125444,0.00019452,2]
[363097590,1748575844794,-430.0,0.00019452,2]
[363097592,1748575844803,-430.0,0.00019452,2]
[363097594,1748575844812,-430.0,0.00019452,2]
[363097596,1748575844821,-430.0,0.00019452,2]
[363097598,1748575844830,-437.21,0.00019452,2]
[363097600,1748575844839,-430.0,0.00019452,2]
[363097602,1748575844848,-430.0,0.00019452,2]
[363097604,1748575844858,-430.0,0.00019452,2]
[363097606,1748575844867,-430.0,0.00019452,2]
[363097608,1748575844878,-430.0,0.00019452,2]
[363097610,1748575844888,-443.99709478,0.00019452,2]
[363097612,1748575844897,-430.0,0.00019452,2]
[363097614,1748575844906,-442.62800901,0.00019452,2]
[363097616,1748575844916,-430.0,0.00019452,2]
[363097618,1748575844925,-430.0,0.00019452,2]
[363097620,1748575844935,-430.0,0.00019452,2]
[363097622,1748575844944,-430.0,0.00019452,2]
[363097624,1748575844953,-430.0,0.00019452,2]
[363097626,1748575844963,-430.0,0.00019452,2]
[363097629,1748575844974,-430.0,0.00019452,2]
[363097630,1748575844983,-430.0,0.00019452,2]
[363097632,1748575844992,-430.0,0.00019452,2]
[363097634,1748575845001,-430.0,0.00019452,2]
[363097636,1748575845010,-430.0,0.00019452,2]
[363097638,1748575845019,-430.0,0.00019452,2]
[363097640,1748575845028,-430.0,0.00019452,2]
[363097642,1748575845038,-430.0,0.00019452,2]
[363097644,1748575845047,-430.0,0.00019452,2]
[363097646,1748575845056,-430.0,0.00019452,2]
[363097648,1748575845066,-828.55,0.00019452,2]
[363097650,1748575845075,-430.0,0.00019452,2]
[363097652,1748575845085,-430.0,0.00019452,2]
[363097654,1748575845095,-536.24,0.00019452,2]
[363097656,1748575845104,-315.86623189,0.00019452,2]
[363097658,1748575845112,-430.0,0.00019452,2]
[363097660,1748575845121,-430.0,0.00019452,2]
[363097662,1748575845132,-751.02,0.00019452,2]
[363097664,1748575845141,-443.66779385,0.00019452,2]
[363097666,1748575845150,-430.0,0.00019452,2]
[363097668,1748575845159,-430.0,0.00019452,2]
[363097670,1748575845169,-536.90917548,0.00019452,2]
[363097672,1748575845179,-430.0,0.00019452,2]
[363097674,1748575845188,-518.60808731,0.00019452,2]
[363097676,1748575845198,-430.0,0.00019452,2]
[363097678,1748575845207,-430.0,0.00019452,2]
[363097680,1748575845216,-430.0,0.00019452,2]
[363097682,1748575845226,-430.0,0.00019452,2]
[363097684,1748575845235,-430.0,0.00019452,2]
[363097686,1748575845244,-430.0,0.00019452,2]
[363097688,1748575845253,-430.0,0.00019452,2]
[363097690,1748575845263,-430.0,0.00019452,2]
[363097692,1748575845271,-430.0,0.00019452,2]
[363097694,1748575845280,-430.0,0.00019452,2]
[363097696,1748575845290,-430.0,0.00019452,2]
[363097698,1748575845299,-438.02812103,0.00019452,2]
[363097700,1748575845308,-245.48418958,0.00019452,2]
[363097702,1748575845317,-430.0,0.00019452,2]
[363097704,1748575845326,-430.0,0.00019452,2]
[363097706,1748575845335,-638.59,0.00019452,2]
[363097708,1748575845344,-430.0,0.00019452,2]
[363097710,1748575845353,-430.0,0.00019452,2]
[363097712,1748575845362,-270.0,0.00019452,2]
[363097714,1748575845371,-430.0,0.00019452,2]
[363097716,1748575845382,-430.0,0.00019452,2]
[363097718,1748575845391,-430.0,0.00019452,2]
[363097720,1748575845400,-430.0,0.00019452,2]
[363097732,1748575845498,-430.0,0.00019452,2]
[363097734,1748575845507,-441.94760495,0.00019452,2]
[363097736,1748575845516,-430.0,0.00019452,2]
[363097738,1748575845525,-430.0,0.00019452,2]
[363097740,1748575845535,-430.0,0.00019452,2]
[363097742,1748575845544,-430.0,0.00019452,2]
[363097744,1748575845553,-509.1,0.00019452,2]
[363097746,1748575845562,-430.0,0.00019452,2]
[363097748,1748575845572,-430.0,0.00019452,2]
[363097750,1748575845581,-430.0,0.00019452,2]
[363097752,1748575845590,-430.0,0.00019452,2]
[363097754,1748575845599,-430.0,0.00019452,2]
[363097756,1748575845608,-400.98856866,0.00019452,2]
[363097758,1748575845618,-745.03,0.00019452,2]
[363097760,1748575845628,-430.0,0.00019452,2]
[363097762,1748575845638,-430.0,0.00019452,2]
[363097764,1748575845647,-430.0,0.00019452,2]
[363097766,1748575845656,-1036.06,0.00019452,2]
[363097768,1748575845666,-430.0,0.00019452,2]
[363097770,1748575845674,-1786.66,0.00019452,2]
[363097772,1748575845683,-958.59,0.00019452,2]
[363097774,1748575845692,-160.0,0.00019452,2]
[363097776,1748575845701,-430.0,0.00019452,2]
[363097778,1748575845710,-430.0,0.00019452,2]
[363097779,1748575845719,-430.0,0.00019452,2]
[363097781,1748575845728,-430.0,0.00019452,2]
[363097783,1748575845738,-430.0,0.00019452,2]
[363097786,1748575845748,-430.0,0.00019452,2]
[363097787,1748575845757,-430.0,0.00019452,2]
[363097789,1748575845767,-433.70165519,0.00019452,2]
[363097791,1748575845776,-430.0,0.00019452,2]
[363097793,1748575845785,-4241.04,0.00019452,2]
[363097796,1748575845794,-430.0,0.00019452,2]
[363097798,1748575845804,-430.0,0.00019452,2]
[363097800,1748575845813,-438.38865541,0.00019452,2]
[363097801,1748575845822,-430.0,0.00019452,2]
[363097803,1748575845831,-2020.64,0.00019452,2]
[363097805,1748575845840,-430.0,0.00019452,2]
[363097807,1748575845849,-430.0,0.00019452,2]
[363097810,1748575845858,-360.29865427,0.00019452,2]
[363097811,1748575845867,-430.0,0.00019452,2]
[363097813,1748575845879,-430.0,0.00019452,2]
[363097815,1748575845888,-430.0,0.00019452,2]
[363097818,1748575845898,-430.0,0.00019452,2]
[363097820,1748575845907,-498.30399999,0.00019452,2]
[363097822,1748575845916,-5615.71,0.00019452,2]
[363097823,1748575845925,-430.0,0.00019452,2]
[363097825,1748575845934,-1737.55,0.00019452,2]
[363097827,1748575845943,-777.34,0.00019452,2]
[363097829,1748575845954,-484.08,0.00019452,2]
[363097831,1748575845963,-430.0,0.00019452,2]
[363097833,1748575845972,-430.0,0.00019452,2]
[363097835,1748575845981,-430.0,0.00019452,2]
[363097837,1748575845991,-430.0,0.00019452,2]
[363097839,1748575846000,-430.0,0.00019452,2]
[363097841,1748575846009,-1317.42,0.00019452,2]
[363097843,1748575846018,-430.0,0.00019452,2]
[363097845,1748575846028,-430.0,0.00019452,2]
[363097847,1748575846037,-531.28,0.00019452,2]
[363097849,1748575846047,-6961.91,0.00019452,2]
[363097851,1748575846056,-430.0,0.00019452,2]
[363097853,1748575846066,-430.0,0.00019452,2]
[363097855,1748575846075,-825.19,0.00019452,2]
[363097857,1748575846084,-430.0,0.00019452,2]
[363097859,1748575846094,-430.0,0.00019452,2]
[363097861,1748575846104,-430.0,0.00019452,2]
[363097863,1748575846114,-642.85,0.00019452,2]
[363097865,1748575846124,-430.0,0.00019452,2]
[363097868,1748575846134,-430.0,0.00019452,2]
[363097870,1748575846143,-430.0,0.00019452,2]
[363097872,1748575846152,-430.0,0.00019452,2]
[363097874,1748575846162,-430.0,0.00019452,2]
[363097877,1748575846171,-430.0,0.00019452,2]
[363097880,1748575846181,-560.36,0.00019452,2]
[363097883,1748575846190,-430.0,0.00019452,2]
[363097885,1748575846199,-430.0,0.00019452,2]
[363097887,1748575846208,-430.0,0.00019452,2]
[363097889,1748575846217,-4859.02,0.00019452,2]
[363097891,1748575846226,-449.6495247,0.00019452,2]
[363097893,1748575846235,-430.0,0.00019452,2]
[363097895,1748575846244,-430.0,0.00019452,2]
[363097897,1748575846253,-433.86397208,0.00019452,2]
[363097899,1748575846263,-702.74,0.00019452,2]
[363097901,1748575846272,-970.55,0.00019452,2]
[363097903,1748575846281,-410.0,0.00019452,2]
[363097905,1748575846294,-430.0,0.00019452,2]
[363097907,1748575846303,-430.0,0.00019452,2]
[363097909,1748575846312,-3886.76,0.00019452,2]
[363097911,1748575846321,-430.0,0.00019452,2]
[363097913,1748575846331,-3243.67,0.00019452,2]
[363097915,1748575846339,-430.0,0.00019452,2]
[363097917,1748575846349,-430.0,0.00019452,2]
[363097919,1748575846358,-927.15,0.00019452,2]
[363097921,1748575846367,-430.0,0.00019452,2]
[363097923,1748575846376,-1085.14,0.00019452,2]
[363097925,1748575846384,-430.0,0.00019452,2]
[363097927,1748575846394,-430.0,0.00019452,2]
[363097928,1748575846403,-430.0,0.00019452,2]
[363097930,1748575846412,-430.0,0.00019452,2]
[363097932,1748575846421,-893.29,0.00019452,2]
[363097934,1748575846430,-430.0,0.00019452,2]
[363097936,1748575846440,-3911.55,0.00019452,2]
[363097938,1748575846449,-1716.58,0.00019452,2]
[363097940,1748575846458,-430.0,0.00019452,2]
[363097942,1748575846467,-939.23,0.00019452,2]
[363097944,1748575846476,-435.57,0.00019452,2]
[363097946,1748575846486,-1217.43,0.00019452,2]
[363097948,1748575846495,-430.0,0.00019452,2]
[363097950,1748575846504,-236.80589144,0.00019452,2]
[363097952,1748575846514,-1151.16,0.00019452,2]
[363097954,1748575846523,-430.0,0.00019452,2]
[363097956,1748575846532,-430.0,0.00019452,2]
[363097958,1748575846541,-430.0,0.00019452,2]
[363097960,1748575846551,-430.0,0.00019452,2]
[363097962,1748575846559,-430.0,0.00019452,2]
[363097964,1748575846568,-430.0,0.00019452,2]
[363097966,1748575846577,-475.45,0.00019452,2]
[363097968,1748575846586,-430.0,0.00019452,2]
[363097970,1748575846595,-430.0,0.00019452,2]
[363097972,1748575846605,-1274.41,0.00019452,2]
[363097974,1748575846614,-430.0,0.00019452,2]
[363097976,1748575846623,-436.24617768,0.00019452,2]
[363097977,1748575846632,-430.0,0.00019452,2]
[363097979,1748575846642,-430.0,0.00019452,2]
[363097981,1748575846651,-430.0,0.00019452,2]
[363097983,1748575846661,-440.63,0.00019452,2]
[363097986,1748575846670,-430.0,0.00019452,2]
[363097988,1748575846680,-430.0,0.00019452,2]
[363097989,1748575846689,-264.36093399,0.00019452,2]
[363097991,1748575846699,-1219.32,0.00019452,2]
[363097993,1748575846707,-430.0,0.00019452,2]
[363097995,1748575846723,-430.0,0.00019452,2]
[363097998,1748575846738,-499.38,0.00019452,2]
[363097999,1748575846752,-430.0,0.00019452,2]
[363098001,1748575846762,-1816.26,0.00019452,2]
[363098003,1748575846772,-430.0,0.00019452,2]
[363098006,1748575846781,-526.055127,0.00019452,2]
[363098009,1748575846790,-2449.48,0.00019452,2]
[363098012,1748575846799,-2134.14,0.00019452,2]
[363098015,1748575846808,-430.0,0.00019452,2]
[363098018,1748575846821,-430.0,0.00019452,2]
[363098020,1748575846831,-430.0,0.00019452,2]
[363098022,1748575846839,-430.0,0.00019452,2]
[363098024,1748575846849,-606.01,0.00019452,2]
[363098026,1748575846858,-430.0,0.00019452,2]
[363098028,1748575846867,-430.0,0.00019452,2]
[363098030,1748575846877,-430.0,0.00019452,2]
[363098032,1748575846887,-430.0,0.00019452,2]
[363098034,1748575846896,-430.0,0.00019452,2]
[363098035,1748575846905,-430.0,0.00019452,2]
[363098037,1748575846914,-430.0,0.00019452,2]
[363098039,1748575846924,-430.0,0.00019452,2]
[363098041,1748575846933,-430.0,0.00019452,2]
[363098043,1748575846942,-606.46,0.00019452,2]
[363098045,1748575846951,-430.0,0.00019452,2]
[363098047,1748575846962,-430.0,0.00019452,2]
[363098049,1748575846972,-1238.61510351,0.00019452,2]
[363098053,1748575847003,-1269.67489649,0.00019452,2]
[363098055,1748575847012,-437.03918346,0.00019452,2]
[363098057,1748575847021,-430.0,0.00019452,2]
[363098059,1748575847031,-153.06565874,0.00019452,2]
[363098061,1748575847041,-426.28457033,0.00019452,2]
[363098063,1748575847051,-439.01655716,0.00019452,2]
[363098065,1748575847060,-1361.81,0.00019452,2]
[363098067,1748575847070,-471.30416334,0.00019452,2]
[363098069,1748575847079,-430.0,0.00019452,2]
[363098071,1748575847089,-430.0,0.00019452,2]
[363098073,1748575847098,-430.0,0.00019452,2]
[363098075,1748575847108,-578.28,0.00019452,2]
[363098077,1748575847117,-218.86539562,0.00019452,2]